bitfinex/quotes_ETHUSD_20240902
["timestamp","ask_amount","ask_price","bid_price","bid_amount"]
[1725272040751,2.76835,2528.6,2527.5,0.07911651]
[1725272041039,8.21347414,2528.8,2527.7,2.3899]
[1725272041196,2.0,2528.6,2527.7,2.3899]
[1725272041494,2.0,2528.6,2526.5,2.7706]
[1725272041495,2.76885,2528.2,2527.3,2.6986]
[1725272041694,2.76885,2528.2,2527.4,0.55]
[1725272041695,2.76894,2528.1,2527.4,0.55]
[1725272041877,2.769,2528.0,2527.3,2.6986]
[1725272042903,3.322669,2528.1,2527.3,2.6986]
[1725272043218,2.76889,2528.1,2527.3,2.6986]
[1725272043582,2.76882,2528.2,2527.4,0.07912263]
[1725272043784,4.10717341,2528.2,2527.3,2.6986]
[1725272043987,4.10717341,2528.2,2527.4,0.55]
[1725272044227,2.76888,2528.1,2527.4,0.55]
[1725272044387,2.76907,2528.0,2527.3,2.6986]
[1725272044583,2.76907,2528.0,2527.3,0.3969]
[1725272044811,2.76921,2527.8,2526.9,2.3607]
[1725272045011,2.76921,2527.8,2527.0,0.55]
[1725272045225,2.76921,2527.8,2527.0,0.84107]
[1725272046343,2.76921,2527.8,2527.0,3.84107]
[1725272046682,2.76907,2528.0,2527.1,0.0791287]
[1725272046941,2.76907,2528.0,2527.0,3.84107]
[1725272046942,2.76911,2527.9,2527.2,0.55]
[1725272047278,0.31797873,2527.9,2527.2,0.55]
[1725272047400,2.76937,2527.7,2526.9,2.3607]
[1725272047600,2.76937,2527.7,2526.2,0.3969]
[1725272047601,2.76956,2527.5,2526.3,2.2991]
[1725272048205,0.276937,2527.6,2526.4,0.07913873]
[1725272048551,0.276937,2527.6,2526.3,5.06992]
[1725272048715,2.76923,2527.8,2526.5,2.2751]
[1725272048888,1.33016629,2527.8,2526.6,1.19662019]
[1725272049090,1.33016629,2527.8,2526.7,2.2751]
[1725272049091,4.33016629,2527.8,2526.7,2.2751]
[1725272049331,4.33016629,2527.8,2526.8,0.55]
[1725272049531,4.33016629,2527.8,2526.9,0.28251]
[1725272049735,0.31797873,2527.9,2527.0,0.55]
[1725272049940,3.08707873,2527.9,2527.1,0.07912682]
[1725272050234,3.08707873,2527.9,2527.2,0.55]
[1725272050525,0.31797873,2527.9,2527.3,2.43772657]
[1725272050935,0.41071734,2528.1,2527.3,2.43772657]
[1725272051228,3.17959734,2528.1,2527.3,2.43772657]
[1725272052625,2.76911,2527.9,2527.3,2.43772657]
[1725272052999,2.76911,2527.9,2527.3,2.3586]
[1725272053331,2.76911,2527.9,2527.2,0.55]
[1725272053332,2.76934,2527.7,2527.2,0.55]
[1725272053490,6.13317073,2527.9,2527.0,0.55]
[1725272053694,3.36398073,2527.9,2527.1,0.40023769]
[1725272053920,3.36398073,2527.9,2527.2,0.55]
[1725272054541,3.17963734,2528.1,2527.4,2.3978]
[1725272054908,3.17963734,2528.1,2527.5,0.07912387]
[1725272055234,2.76846,2528.5,2527.5,0.07912387]
[1725272055433,2.76826,2528.7,2527.7,2.3125]
[1725272055736,2.76814,2528.8,2527.8,0.91535023]
[1725272055952,2.76858,2528.4,2527.8,0.55]
[1725272056719,2.76833,2528.6,2527.9,0.07910607]
[1725272056950,2.76833,2528.6,2527.8,0.55]
[1725272056951,8.21348414,2528.8,2527.8,0.55]
[1725272057095,5.7683,2528.7,2527.9,0.28625]
[1725272057295,2.76847,2528.5,2528.0,0.55]
[1725272057504,2.76833,2528.6,2527.8,0.55]
[1725272057695,3.99183026,2528.6,2527.9,0.07910611]
[1725272057923,3.0,2528.7,2528.0,0.55]
[1725272058329,3.0,2528.7,2527.8,0.55]
[1725272058541,3.0,2528.7,2527.9,0.28625]
[1725272058741,5.76822,2528.7,2528.0,0.55]
[1725272059246,2.76824,2528.7,2528.0,0.55]
[1725272059602,8.21345414,2528.8,2528.0,0.55]
[1725272059796,8.21345414,2528.8,2528.1,2.4848]
[1725272060002,9.61159255,2528.8,2528.1,2.4848]
[1725272060438,9.61159255,2528.8,2528.2,0.07909857]
[1725272060741,6.84346255,2528.8,2528.1,2.4848]
[1725272060904,5.44532414,2528.8,2528.2,0.55]
[1725272061932,8.21343414,2528.8,2528.2,0.55]
[1725272062849,8.21343414,2528.8,2528.1,2.4848]
[1725272063050,2.76823,2528.7,2528.1,2.4848]
[1725272063363,2.7691,2527.9,2527.7,2.4531]
[1725272063551,2.7691,2527.9,2527.3,2.4531]
[1725272064325,2.76939,2527.7,2527.3,2.4531]
[1725272064802,5.53829,2527.9,2527.3,2.4531]
[1725272064999,2.76911,2527.9,2527.3,2.4531]
[1725272065555,3.86744341,2527.9,2527.3,2.4531]
[1725272067053,2.76928,2527.8,2527.3,2.4531]
[1725272067220,3.86744341,2527.9,2526.9,2.3245]
[1725272067221,2.76935,2527.7,2526.9,2.3245]
[1725272067451,3.86744341,2527.9,2526.6,0.56748833]
[1725272067452,2.76974,2527.4,2526.6,0.56748833]
[1725272067659,2.76974,2527.4,2526.5,2.3974]
[1725272067988,2.76994,2527.2,2526.5,2.3974]
[1725272068673,2.76974,2527.4,2526.5,2.3974]
[1725272068845,2.76974,2527.4,2526.6,0.35857707]
[1725272069052,5.53948,2527.4,2526.6,0.35857707]
[1725272069256,2.76974,2527.4,2526.6,0.35857707]
[1725272069779,8.49171914,2527.6,2526.6,0.27943]
[1725272069985,2.76971,2527.4,2526.7,0.55]
[1725272070290,0.84917191,2527.5,2526.7,0.55]
[1725272070590,2.76972,2527.4,2526.7,0.55]
[1725272071047,2.76975,2527.3,2526.7,0.55]
[1725272071247,2.76975,2527.3,2526.5,2.3974]
[1725272071248,2.77013,2527.0,2526.5,2.3974]
[1725272071493,2.76993,2527.2,2526.5,2.3974]
[1725272071989,2.76998,2527.1,2526.5,2.3974]
[1725272072157,2.76993,2527.2,2526.5,2.3974]
[1725272072361,5.5394,2527.4,2526.6,0.31888587]
[1725272072570,2.76966,2527.4,2526.7,0.55]
[1725272074465,8.49171914,2527.6,2526.7,0.55]
[1725272074466,5.72225914,2527.6,2526.7,0.55]
[1725272074659,5.72225914,2527.6,2526.8,0.07913439]
[1725272074893,8.21484414,2527.6,2526.9,0.55]
[1725272075073,2.76953,2527.5,2527.0,0.07913251]
[1725272075282,8.21484414,2527.6,2527.0,0.07913251]
[1725272076401,2.76962,2527.5,2527.0,0.07913251]
[1725272076616,2.76962,2527.5,2526.9,0.55]
[1725272076791,2.76962,2527.5,2526.8,0.55]
[1725272076994,2.76983,2527.3,2526.6,3.0]
[1725272077206,2.76983,2527.3,2526.5,2.3974]
[1725272077207,2.76983,2527.3,2526.7,0.0791458]
[1725272077510,2.76983,2527.3,2526.5,2.3974]
[1725272077669,2.76983,2527.3,2526.6,0.61888014]
[1725272077870,2.76983,2527.3,2526.6,3.61888014]
[1725272078305,0.90364286,2527.4,2526.6,3.61888014]
[1725272078508,0.90364286,2527.4,2526.7,0.55]
[1725272078710,6.44310286,2527.4,2526.8,0.07914018]
[1725272078894,6.44310286,2527.4,2526.6,3.53974]
[1725272078895,0.64431029,2527.3,2526.5,2.3974]
[1725272079211,2.76995,2527.2,2526.6,0.55]
[1725272079592,2.76995,2527.2,2526.6,0.62914523]
[1725272079919,2.76995,2527.2,2526.6,0.93179975]
[1725272080467,5.53989,2527.2,2526.6,0.93179975]
[1725272080669,2.76999,2527.1,2526.6,0.85265452]
[1725272081705,2.76994,2527.2,2526.6,0.85265452]
[1725272083116,2.76994,2527.2,2526.7,0.07914529]
[1725272083271,2.76994,2527.2,2526.6,0.85265452]
[1725272083672,2.77004,2527.1,2526.6,0.55]
[1725272083914,0.90364286,2527.4,2526.5,2.3974]
[1725272083915,2.77021,2526.9,2526.5,2.3974]
[1725272084319,5.54047,2526.9,2526.5,0.82410625]
[1725272084482,3.86878941,2526.9,2526.0,0.3969]
[1725272084688,3.86878941,2526.9,2525.7,3.0]
[1725272085283,1.09857941,2526.9,2525.7,3.0]
[1725272085485,1.09857941,2526.9,2525.4,2.7718]
[1725272085486,2.77063,2526.5,2525.5,3.0]
[1725272085982,2.77063,2526.5,2525.3,3.16883]
[1725272085983,7.72932414,2526.7,2525.3,0.3969]
[1725272086184,7.72932414,2526.7,2524.6,2.77266]
[1725272086185,2.77147,2525.8,2524.6,2.77266]
[1725272086389,2.7713,2525.9,2524.7,2.77259]
[1725272086604,2.7713,2525.9,2524.8,0.3969]
[1725272087007,2.77123,2526.0,2524.8,0.3969]
[1725272087426,2.7713,2525.9,2524.9,2.3185]
[1725272087593,2.7713,2525.9,2525.0,0.27154]
[1725272088129,2.77123,2526.0,2525.0,0.27154]
[1725272088441,2.77123,2526.0,2525.0,3.27154]
[1725272088797,2.77129,2525.9,2525.1,2.8188]
[1725272088986,2.77129,2525.9,2525.2,3.0]
[1725272089184,2.77129,2525.9,2525.3,0.55]
[1725272089584,2.77123,2526.0,2525.3,0.55]
[1725272089789,2.77123,2526.0,2525.4,0.355]
[1725272089997,2.77123,2526.0,2525.3,0.55]
[1725272090284,2.77123,2526.0,2525.4,0.0791854]
[1725272090485,2.77123,2526.0,2525.3,0.55]
[1725272091585,5.54248,2526.0,2525.3,0.55]
[1725272091799,2.77123,2526.0,2525.3,0.55]
[1725272093408,2.77123,2526.0,2525.4,0.07918543]
[1725272093721,6.64123741,2526.0,2525.3,0.55]
[1725272094133,10.71953119,2526.0,2525.3,0.55]
[1725272094286,10.71953119,2526.0,2525.2,3.0]
[1725272094287,2.7717,2525.6,2525.1,2.2688]
[1725272094487,2.7717,2525.6,2524.4,2.3846]
[1725272094711,2.77168,2525.6,2524.4,2.3846]
[1725272094916,4.07829378,2525.4,2524.4,2.3846]
[1725272095128,2.7722,2525.1,2524.4,2.3846]
[1725272095304,6.85049378,2525.1,2524.4,2.3846]
[1725272095502,4.07829378,2525.1,2524.4,2.3846]
[1725272096102,5.95163938,2525.4,2524.4,2.3846]
[1725272096303,2.77205,2525.2,2524.5,0.23846]
[1725272096614,2.77205,2525.2,2524.6,0.07920785]
[1725272096802,3.17971938,2525.4,2524.6,0.07920785]
[1725272097005,5.44048675,2525.5,2524.6,0.07920785]
[1725272097209,13.65980675,2525.8,2524.7,2.3444]
[1725272097500,2.77151,2525.7,2524.7,2.3444]
[1725272097954,11.69208932,2525.8,2524.8,0.55]
[1725272098257,5.44048675,2525.8,2525.0,2.3444]
[1725272098467,3.84326312,2525.9,2525.1,0.55]
[1725272098778,2.77131,2525.9,2525.1,0.55]
[1725272099423,2.77123,2526.0,2525.1,0.55]
[1725272099846,2.7713,2525.9,2525.1,0.55]
[1725272100162,2.7713,2525.9,2525.1,0.868384]
[1725272100565,5.54249,2526.0,2525.1,0.868384]
[1725272100975,3.25119257,2526.2,2525.2,0.07918754]
[1725272101274,10.65918675,2526.4,2525.3,2.8359]
[1725272101487,5.44048675,2526.1,2525.3,2.8359]
[1725272101694,2.77184,2525.4,2524.5,2.305]
[1725272102357,2.4013,2525.4,2524.2,2.2735]
[1725272102535,5.44048675,2524.9,2522.8,2.2735]
[1725272102738,2.77292,2524.5,2523.2,2.2735]
[1725272102949,3.98742175,2524.4,2523.2,2.2735]
[1725272103252,3.98742175,2524.4,2523.1,3.17119]
[1725272103253,1.21447175,2524.4,2523.4,2.2735]
[1725272103550,2.77263,2524.7,2523.5,2.3527273]
[1725272103754,2.77263,2524.7,2523.5,5.1266473]
[1725272103965,0.277263,2524.6,2523.6,0.51266473]
[1725272104149,5.44048675,2524.9,2523.8,2.3329]
[1725272104356,0.6991425,2525.0,2523.9,0.07921677]
[1725272104589,0.6991425,2525.0,2524.0,2.3329]
[1725272104590,2.77227,2525.0,2524.0,2.3329]
[1725272104746,0.277227,2524.9,2524.0,2.57411168]
[1725272104943,3.049617,2524.9,2524.0,2.57411168]
[1725272105460,3.049617,2524.9,2524.1,0.55]
[1725272105769,2.77251,2524.8,2524.1,0.55]
[1725272106094,3.75922214,2524.8,2524.1,0.55]
[1725272106246,2.21164473,2524.8,2524.1,0.55]
[1725272106442,2.21164473,2524.8,2524.0,2.3329]
[1725272106642,2.77304,2524.4,2523.7,2.4207]
[1725272106880,0.277304,2524.3,2523.7,2.4207]
[1725272107074,2.77304,2524.4,2523.7,2.4207]
[1725272107391,2.77325,2524.2,2523.7,2.4207]
[1725272108055,2.77305,2524.3,2523.7,2.4207]
[1725272108259,2.77304,2524.4,2523.8,0.07924006]
[1725272108443,5.44048675,2524.5,2523.7,2.4207]
[1725272108643,5.44048675,2524.5,2523.7,2.66277]
[1725272109187,3.75933214,2524.7,2523.8,0.07923188]
[1725272109388,3.75944214,2524.6,2523.7,2.66277]
[1725272109554,3.75944214,2524.6,2523.8,0.55]
[1725272109884,3.75944214,2524.6,2523.9,0.07922751]
[1725272110183,3.75944214,2524.6,2524.0,0.55]
[1725272110485,1.24379293,2524.7,2524.1,0.07922752]
[1725272110704,1.24379293,2524.7,2523.8,0.55]
[1725272110705,0.98671214,2524.8,2523.8,0.871277]
[1725272110848,3.75922214,2524.8,2523.8,0.871277]
[1725272111041,0.98671214,2524.7,2523.8,0.871277]
[1725272111276,0.98671214,2524.7,2524.0,2.4855]
[1725272111454,0.98671214,2524.7,2524.1,0.55]
[1725272111670,5.16508,2525.2,2524.2,0.07922065]
[1725272111873,2.77228,2525.0,2524.3,0.55]
[1725272112055,3.75899214,2525.0,2524.4,0.07921498]
[1725272112259,3.75910214,2524.9,2524.3,0.55]
[1725272112606,0.98671214,2524.9,2524.3,0.62921503]
[1725272112758,0.69943851,2525.0,2524.3,0.62921503]
[1725272112958,3.235483,2525.1,2524.3,0.62921503]
[1725272113377,0.463313,2525.1,2524.3,0.62921503]
[1725272113588,0.463313,2525.1,2524.4,0.07921418]
[1725272113899,0.463313,2525.1,2524.5,2.3026]
[1725272114047,0.463313,2525.1,2524.5,2.8526]
[1725272114406,0.463313,2525.1,2524.5,2.3026]
[1725272114691,2.77208,2525.2,2524.5,2.3026]
[1725272115257,6.32833102,2525.3,2524.5,2.3026]
[1725272115458,6.08820102,2525.3,2524.6,0.62921144]
[1725272116664,0.47268989,2526.1,2524.6,0.62921144]
[1725272116665,5.44048675,2525.6,2524.6,0.62921144]
[1725272117003,8.85988102,2525.6,2524.7,2.466]
[1725272117175,0.64771427,2525.5,2524.8,1.1516]
[1725272117713,3.41945427,2525.5,2524.8,1.1516]
[1725272117919,2.77192,2525.4,2524.8,0.55]
[1725272118060,2.77209,2525.2,2524.7,2.466]
[1725272120967,5.54425,2525.2,2524.7,2.466]
[1725272121167,2.77234,2525.0,2524.1,2.4681]
[1725272121367,2.77257,2524.8,2524.2,0.55]
[1725272121569,0.554491,2524.8,2524.2,0.55]
[1725272121899,2.77257,2524.8,2524.2,0.55]
[1725272122414,2.77256,2524.8,2524.1,2.54732654]
[1725272122568,2.77262,2524.7,2524.1,2.54732654]
[1725272123291,8.21279675,2525.0,2524.2,0.07922655]
[1725272123499,2.7724,2524.9,2524.2,0.25473266]
[1725272123669,2.7724,2524.9,2524.3,0.55]
[1725272124274,2.77253,2524.8,2524.2,0.55]
[1725272124469,3.9358211,2524.8,2524.2,0.55]
[1725272126227,2.77283,2524.5,2524.1,2.4681]
[1725272126371,2.77283,2524.5,2523.7,2.2595]
[1725272126570,2.77309,2524.3,2523.7,2.2595]
[1725272127508,2.77334,2524.1,2523.7,2.2595]
[1725272127814,2.77334,2524.1,2523.3,2.2999]
[1725272128023,2.77382,2523.6,2523.3,2.2999]
[1725272128221,2.77345,2524.0,2523.3,2.2999]
[1725272128387,2.77371,2523.7,2523.3,2.2999]
[1725272128947,2.77368,2523.8,2523.3,2.2999]
[1725272129736,5.54735,2523.8,2523.3,2.2999]
[1725272129905,5.54734,2523.8,2523.3,2.2999]
[1725272130105,2.77367,2523.8,2523.3,2.2999]
[1725272130508,2.77341,2524.0,2523.3,2.2999]
[1725272130699,6.44268454,2524.0,2523.4,0.07924754]
[1725272130896,2.77321,2524.2,2523.4,0.07924754]
[1725272131208,2.77321,2524.2,2523.5,0.55]
[1725272131427,2.77297,2524.4,2523.5,0.55]
[1725272131428,5.54599,2524.4,2523.5,0.55]
[1725272131740,2.77297,2524.4,2523.4,0.55]
[1725272132046,2.77304,2524.3,2523.5,0.562402]
[1725272132333,2.77304,2524.3,2523.6,0.55]
[1725272133215,5.54598,2524.4,2523.6,0.55]
[1725272133428,2.77297,2524.4,2523.6,0.55]
[1725272133625,5.54423,2525.2,2524.1,2.77323]
[1725272133814,2.7721,2525.2,2524.3,2.3631]
[1725272134015,3.87054767,2525.2,2524.4,0.62921354]
[1725272134843,6.64270767,2525.2,2524.4,0.62921354]
[1725272135202,2.77234,2525.0,2524.4,0.62921354]
[1725272135357,6.64270767,2525.2,2524.4,0.62921354]
[1725272135506,3.87055767,2525.2,2524.4,0.95836804]
[1725272136327,8.21242675,2525.3,2524.4,0.95836804]
[1725272136524,2.77206,2525.2,2524.4,3.95836804]
[1725272136752,5.54333,2525.6,2524.5,2.497]
[1725272136962,2.77185,2525.4,2524.6,1.55202801]
[1725272137114,2.77196,2525.3,2524.6,4.4728238]
[1725272137721,2.77185,2525.4,2524.7,0.07920422]
[1725272137926,2.77185,2525.4,2524.8,0.55]
[1725272139063,2.77196,2525.3,2524.8,0.55]
[1725272139562,2.77185,2525.4,2524.8,0.55]
[1725272140070,5.54377,2525.4,2524.8,0.55]
[1725272140448,2.77185,2525.4,2524.7,0.55]
[1725272140657,8.03437561,2525.3,2524.5,2.497]
[1725272140987,2.77285,2524.5,2523.7,2.4894]
[1725272141260,2.77323,2524.2,2523.7,2.4894]
[1725272141464,2.77329,2524.1,2523.7,2.4894]
[1725272141650,2.77329,2524.1,2523.0,2.4894]
[1725272141651,2.77357,2523.9,2523.0,2.4894]
[1725272141819,5.54664,2524.1,2523.0,2.4894]
[1725272142163,2.77341,2524.0,2523.1,0.24894]
[1725272142737,2.77349,2523.9,2523.1,0.24894]
[1725272143467,2.77329,2524.1,2523.1,3.24894]
[1725272143759,2.7735,2523.9,2523.2,5.3217]
[1725272143967,2.77329,2524.1,2523.3,0.07924714]
[1725272144321,2.77329,2524.1,2523.2,2.3217]
[1725272144520,2.77329,2524.1,2523.3,0.55]
[1725272144715,2.77329,2524.1,2523.4,0.07924559]
[1725272145020,2.77329,2524.1,2523.5,0.55]
[1725272145435,0.59388886,2524.0,2523.4,0.55]
[1725272145620,0.59388886,2524.0,2523.0,3.27745]
[1725272145621,2.77356,2523.9,2523.0,3.27745]
[1725272145826,2.77356,2523.9,2523.1,0.55]
[1725272146265,5.54714,2523.9,2523.1,0.55]
[1725272146566,2.77356,2523.9,2523.1,1.161485]
[1725272146863,2.7733,2524.1,2523.2,2.2884]
[1725272147019,5.44048675,2524.2,2523.3,0.55]
[1725272147220,5.44048675,2524.2,2523.2,5.2884]
[1725272147221,0.78616868,2524.1,2523.2,5.2884]
[1725272147558,2.77357,2523.9,2523.3,0.55]
[1725272148570,0.60343756,2524.4,2523.3,4.13384]
[1725272148723,2.7735,2523.9,2523.3,4.13384]
[1725272148929,1.19732642,2524.4,2523.3,3.55]
[1725272148930,0.60343756,2524.4,2523.3,3.55]
[1725272149166,2.77303,2524.4,2523.4,0.07923624]
[1725272149467,2.77302,2524.4,2523.5,0.55]
[1725272149666,2.77323,2524.2,2523.5,0.905]
[1725272149966,2.77323,2524.2,2523.6,0.07923623]
[1725272150268,2.77323,2524.2,2523.7,0.55]
[1725272151941,2.77344,2524.0,2523.3,3.0]
[1725272152137,0.277344,2523.9,2523.2,2.2884]
[1725272152360,2.77363,2523.8,2523.2,2.2884]
[1725272152747,4.3431,2526.3,2523.9,2.2799]
[1725272153064,2.77026,2526.9,2525.3,2.77183]
[1725272153065,5.11363,2526.6,2525.3,2.77183]
[1725272153256,2.77031,2526.8,2525.5,2.77169]
[1725272153470,4.77008,2527.0,2525.6,5.33466769]
[1725272153471,2.77008,2527.0,2525.6,5.33466769]
[1725272153773,2.77008,2527.0,2525.8,2.77129]
[1725272153982,2.77008,2527.0,2525.9,0.62915733]
[1725272155584,2.7702,2526.9,2525.9,0.62915733]
[1725272155738,0.554028,2526.8,2525.9,0.62915733]
[1725272156845,2.77019,2526.9,2525.9,0.62915733]
[1725272157051,2.77019,2526.9,2525.9,3.62915733]
[1725272157753,2.77008,2527.0,2525.9,3.62915733]
[1725272158087,3.18106174,2527.2,2526.1,2.77096]
[1725272158286,3.18106174,2527.2,2526.2,1.42175998]
[1725272158287,0.31810617,2527.1,2526.2,1.42175998]
[1725272158485,0.31810617,2527.1,2526.3,0.07914705]
[1725272158657,0.31810617,2527.1,2526.5,2.384]
[1725272158996,0.31810617,2527.1,2526.6,0.62914611]
[1725272160973,2.76986,2527.2,2526.6,0.62914611]
[1725272161173,2.77008,2527.0,2526.5,2.384]
[1725272161901,2.77037,2526.8,2526.0,2.54845276]
[1725272162205,0.277008,2526.9,2526.1,3.55]
[1725272162366,3.047198,2526.9,2526.2,0.07915708]
[1725272162566,0.5817348,2526.8,2526.3,0.55]
[1725272162961,5.44048675,2527.3,2526.4,0.07915276]
[1725272162962,2.76986,2527.2,2526.4,0.07915276]
[1725272163189,2.76986,2527.2,2526.5,0.55]
[1725272163372,2.76986,2527.2,2526.6,0.07914555]
[1725272163590,2.76986,2527.2,2526.7,0.55]
[1725272163765,0.553961,2527.1,2526.7,0.55]
[1725272164273,2.76984,2527.3,2526.8,0.0791442]
[1725272164472,2.76984,2527.3,2526.1,3.0]
[1725272164473,2.77004,2527.1,2526.1,3.0]
[1725272164659,2.77059,2526.6,2526.2,2.3031]
[1725272165510,2.77035,2526.8,2526.2,2.3031]
[1725272165803,3.047124,2527.0,2526.3,0.07916004]
[1725272165977,0.3047124,2526.9,2526.4,0.55]
[1725272166179,0.3047124,2526.9,2526.3,0.55]
[1725272166813,3.0749324,2526.9,2526.3,0.55]
[1725272167313,2.77022,2526.9,2526.3,0.55]
[1725272167515,2.77022,2526.9,2526.4,0.07914858]
[1725272167687,2.77022,2526.9,2526.3,0.55]
[1725272167688,2.77043,2526.7,2526.3,0.62914856]
[1725272167887,3.324495,2526.7,2526.3,0.62914856]
[1725272168092,0.554065,2526.7,2526.3,0.62914856]
[1725272168297,2.77022,2526.9,2526.3,0.62914856]
[1725272171610,5.54051,2526.9,2526.3,0.62914856]
[1725272171816,2.77022,2526.9,2526.3,0.62914856]
[1725272171991,2.77036,2526.8,2526.3,0.62914856]
[1725272172192,0.554058,2526.8,2526.4,0.07915122]
[1725272172393,2.77022,2526.9,2526.5,0.55]
[1725272172997,2.77022,2526.9,2526.6,0.07915058]
[1725272173230,11.21004675,2527.5,2526.7,2.2804]
[1725272173231,2.76979,2527.3,2526.7,2.2804]
[1725272173414,2.76979,2527.3,2526.8,0.62913599]
[1725272173613,2.76954,2527.5,2526.8,0.62913599]
[1725272173614,5.53915,2527.5,2526.8,0.62913599]
[1725272173797,2.76964,2527.4,2526.8,0.62913599]
[1725272174004,2.76964,2527.4,2526.8,0.55]
[1725272174204,2.76964,2527.4,2526.9,0.07913604]
[1725272174403,2.76964,2527.4,2527.0,0.55]
[1725272175428,2.76964,2527.4,2526.8,0.07913605]
[1725272175429,3.323455,2527.5,2526.9,0.55]
[1725272175628,3.323455,2527.5,2527.0,0.0791358]
[1725272175988,2.76965,2527.4,2527.0,0.0791358]
[1725272176734,2.76965,2527.4,2526.9,0.55]
[1725272176735,2.76988,2527.2,2526.9,0.55]
[1725272177024,2.76988,2527.2,2526.8,0.55]
[1725272177234,2.77006,2527.1,2526.8,0.55]
[1725272177431,2.77006,2527.1,2526.8,0.62914182]
[1725272177937,2.76979,2527.3,2526.8,0.62914182]
[1725272179186,2.77048,2526.7,2526.4,2.4511]
[1725272179528,2.77063,2526.5,2525.7,2.408]
[1725272179736,2.77063,2526.5,2525.8,0.33886387]
[1725272181440,2.77063,2526.5,2525.9,0.55]
[1725272181733,2.77045,2526.7,2526.0,0.0791594]
[1725272181933,2.77031,2526.8,2526.1,2.9902]
[1725272182132,2.77031,2526.8,2526.2,0.07915454]
[1725272182317,2.77031,2526.8,2526.3,0.55]
[1725272182517,2.77031,2526.8,2526.4,0.07915454]
[1725272182724,3.14038509,2526.9,2526.4,0.07915454]
[1725272182725,2.77044,2526.7,2526.4,0.07915454]
[1725272184436,5.59009006,2527.1,2526.4,0.07915454]
[1725272184598,2.49834874,2527.8,2526.5,3.0041]
[1725272184599,2.76981,2527.3,2526.5,3.0041]
[1725272184897,0.05000006,2527.2,2526.5,3.0041]
[1725272185105,2.77037,2526.8,2526.5,3.0041]
[1725272185302,2.77052,2526.6,2526.5,0.55]
[1725272185499,2.77052,2526.6,2526.3,0.62915608]
[1725272185844,5.54075,2526.8,2526.3,0.62915608]
[1725272186039,2.77045,2526.7,2526.3,0.62915608]
[1725272186341,2.77052,2526.6,2526.3,0.62915608]
[1725272186499,2.7702,2526.9,2526.3,0.62915608]
[1725272186704,2.76997,2527.1,2526.3,1.23748169]
[1725272187016,2.76997,2527.1,2526.3,1.15832561]
[1725272187345,2.77009,2527.0,2526.3,1.15832561]
[1725272187530,2.77009,2527.0,2526.4,0.66124256]
[1725272187856,2.76992,2527.2,2526.6,2.2657]
[1725272188003,2.76992,2527.2,2526.7,0.62913941]
[1725272188445,5.53989,2527.2,2526.7,0.62913941]
[1725272188607,2.76992,2527.2,2526.7,0.62913941]
[1725272188940,2.76966,2527.4,2526.7,0.91862335]
[1725272189165,5.53939,2527.4,2526.7,3.91862335]
[1725272189301,2.76966,2527.4,2526.7,3.91862335]
[1725272190045,2.76947,2527.6,2526.8,2.3406]
[1725272190217,2.76947,2527.6,2526.9,0.6291269]
[1725272190547,5.539,2527.6,2526.9,0.6291269]
[1725272190847,2.76947,2527.6,2526.9,3.6291269]
[1725272191154,2.76947,2527.6,2527.0,0.63615892]
[1725272191357,2.76947,2527.6,2527.1,0.62912598]
[1725272191796,5.44048675,2528.0,2527.1,0.62912598]
[1725272191797,2.76905,2528.0,2527.2,2.3724]
[1725272191943,2.76911,2527.9,2527.3,0.55]
[1725272192507,2.76896,2528.1,2527.3,0.55]
[1725272192682,2.3882,2528.3,2527.4,0.07911564]
[1725272192683,2.76871,2528.3,2527.4,0.07911564]
[1725272192991,2.76878,2528.2,2527.5,2.8996]
[1725272193138,2.76878,2528.2,2527.6,0.07910815]
[1725272193480,2.76878,2528.2,2527.7,0.55]
[1725272193658,2.76878,2528.2,2527.8,0.07910817]
[1725272193990,5.53794,2528.1,2527.9,0.55]
[1725272194285,2.76897,2528.1,2527.9,0.55]
[1725272194466,2.76869,2528.3,2527.9,0.55]
[1725272194665,2.76887,2528.1,2527.7,0.55]
[1725272194873,2.76869,2528.3,2527.8,0.07910958]
[1725272195096,5.53744,2528.3,2527.9,0.55]
[1725272195241,2.76869,2528.3,2527.9,0.55]
[1725272195680,2.76869,2528.3,2528.0,0.07910394]
[1725272195858,2.76847,2528.5,2527.8,0.07910395]
[1725272196065,2.76847,2528.5,2527.9,0.55]
[1725272196401,2.76857,2528.4,2528.0,0.07910308]
[1725272196540,2.76856,2528.4,2528.0,0.07910308]
[1725272197095,2.76856,2528.4,2528.1,0.55]
[1725272197297,2.76866,2528.3,2528.1,0.55]
[1725272197602,2.76887,2528.1,2527.6,3.59636696]
[1725272197747,2.76887,2528.1,2527.7,0.55]
[1725272198383,2.76898,2528.0,2527.7,0.55]
[1725272198593,2.76887,2528.1,2527.6,0.55]
[1725272198774,2.76869,2528.3,2527.6,0.78496]
[1725272198775,5.53745,2528.3,2527.6,0.78496]
[1725272198976,5.53745,2528.3,2527.7,0.313456]
[1725272198977,2.76869,2528.3,2527.7,0.313456]
[1725272199174,2.76845,2528.5,2527.8,0.62910418]
[1725272199410,2.76845,2528.5,2527.9,2.272]
[1725272199411,5.53699,2528.5,2527.9,2.272]
[1725272199545,5.53699,2528.5,2528.0,0.55]
[1725272199860,2.76845,2528.5,2528.1,0.07909826]
[1725272200049,2.76845,2528.5,2528.2,0.55]
[1725272200680,2.76845,2528.5,2528.0,0.55]
[1725272200985,2.76845,2528.5,2528.0,0.80855456]
[1725272201371,5.53697,2528.5,2528.0,0.80855456]
[1725272201572,2.76845,2528.5,2528.0,0.80855456]
[1725272202263,0.05000006,2528.4,2527.7,0.313456]